bitfinex-derivatives/quotes_BTCF0:USTF0_20250517
["timestamp","ask_amount","ask_price","bid_price","bid_amount"]
[1747501663722,0.42122565,103140.0,103130.0,1.59236848]
[1747501664317,0.42122565,103140.0,103130.0,1.5467552]
[1747501664519,0.42122565,103140.0,103130.0,1.3343152]
[1747501664717,0.42122565,103140.0,103130.0,1.64480709]
[1747501664919,0.42122565,103140.0,103130.0,1.21992709]
[1747501665118,0.42122565,103140.0,103130.0,1.64480709]
[1747501665622,0.42122565,103140.0,103130.0,1.21992709]
[1747501666616,0.20899705,103140.0,103130.0,1.21992709]
[1747501666819,0.40282555,103140.0,103130.0,1.21992709]
[1747501667014,0.40282555,103140.0,103130.0,1.15417478]
[1747501667210,0.17859705,103140.0,103130.0,1.15417478]
[1747501668824,0.21159705,103140.0,103130.0,1.15417478]
[1747501669723,0.21159705,103140.0,103130.0,1.50457478]
[1747501672025,0.21159705,103140.0,103130.0,1.51690205]
[1747501675433,0.14699705,103140.0,103130.0,1.51690205]
[1747501675725,0.14699705,103140.0,103130.0,1.61495394]
[1747501676327,0.00544216,103140.0,103130.0,1.61495394]
[1747501677221,0.18544216,103140.0,103130.0,1.61495394]
[1747501677519,0.18544216,103140.0,103130.0,1.72109287]
[1747501678326,0.00544216,103140.0,103130.0,1.72109287]
[1747501678831,0.00544216,103140.0,103130.0,1.84109287]
[1747501680122,0.0656,103160.0,103130.0,1.84109287]
[1747501680326,0.002,103160.0,103150.0,1.11151358]
[1747501680520,0.00162025,103160.0,103150.0,1.65497308]
[1747501680827,0.00162025,103160.0,103150.0,1.78370804]
[1747501681125,0.60351619,103170.0,103160.0,0.1937911]
[1747501681317,0.60351619,103170.0,103160.0,1.59815488]
[1747501681519,0.60351619,103170.0,103160.0,1.59853463]
[1747501681723,0.60351619,103170.0,103160.0,1.59912959]
[1747501681921,0.60351619,103170.0,103160.0,1.6515682]
[1747501682122,0.78351619,103170.0,103160.0,1.6515682]
[1747501682429,0.48516729,103180.0,103170.0,0.1937723]
[1747501682726,0.48516729,103180.0,103170.0,1.14825474]
[1747501682922,0.48516729,103180.0,103170.0,1.47492285]
[1747501683119,0.66516729,103180.0,103170.0,1.4753026]
[1747501683729,0.66716729,103180.0,103170.0,1.4753026]
[1747501683928,0.183,103180.0,103170.0,1.7912421]
[1747501684228,0.183,103180.0,103170.0,1.8237421]
[1747501684429,0.183,103180.0,103170.0,1.72569021]
[1747501685231,0.183,103180.0,103170.0,1.51341021]
[1747501685532,0.183,103180.0,103170.0,1.30097021]
[1747501685833,0.183,103180.0,103170.0,1.72561021]
[1747501686331,0.183,103180.0,103170.0,1.68016121]
[1747501687332,0.183,103180.0,103170.0,1.68971628]
[1747501687527,0.2146,103180.0,103170.0,1.68971628]
[1747501687726,0.2146,103180.0,103170.0,1.26507628]
[1747501688033,0.2146,103180.0,103170.0,1.68955628]
[1747501688427,0.2473,103180.0,103170.0,1.47727628]
[1747501688738,0.2473,103180.0,103170.0,1.68951628]
[1747501689730,0.2473,103180.0,103170.0,1.72626389]
[1747501689928,0.2473,103180.0,103170.0,1.628212]
[1747501690228,0.2473,103180.0,103170.0,1.72626389]
[1747501690630,0.2473,103180.0,103170.0,1.67382528]
[1747501690928,0.2040464,103180.0,103170.0,1.67382528]
[1747501692226,0.2040464,103180.0,103170.0,1.67378528]
[1747501692530,0.2040464,103180.0,103170.0,1.57573339]
[1747501692929,0.2040464,103180.0,103170.0,1.67378528]
[1747501693824,0.2040464,103180.0,103170.0,1.66713767]
[1747501697034,0.2040464,103180.0,103170.0,1.72409042]
[1747501698437,0.2030464,103180.0,103170.0,1.72609042]
[1747501699633,0.20848856,103180.0,103170.0,1.72609042]
[1747501700236,0.20748856,103180.0,103170.0,2.08889042]
[1747501700532,0.20748856,103180.0,103170.0,2.08964992]
[1747501701129,0.11552756,103180.0,103170.0,2.08964992]
[1747501701928,0.18032756,103180.0,103170.0,2.08964992]
[1747501702133,0.18032756,103180.0,103170.0,2.08960992]
[1747501706245,0.18032756,103180.0,103170.0,2.12635753]
[1747501707951,0.18032756,103180.0,103170.0,2.32353136]
[1747501708155,0.14772756,103180.0,103170.0,2.32353136]
[1747501709448,0.11552756,103180.0,103170.0,2.32353136]
[1747501710452,0.11552756,103180.0,103170.0,2.3387723]
[1747501710746,0.11552756,103180.0,103170.0,2.37099781]
[1747501710952,0.11552756,103180.0,103170.0,2.43266355]
[1747501711450,0.11552756,103180.0,103170.0,2.43262355]
[1747501711650,0.11552756,103180.0,103170.0,2.33457166]
[1747501711853,0.11552756,103180.0,103170.0,2.43262355]
[1747501712041,0.11552756,103180.0,103170.0,2.43362355]
[1747501712243,0.11552756,103180.0,103170.0,2.43462355]
[1747501712443,0.14872756,103180.0,103170.0,2.43462355]
[1747501712742,0.17942756,103180.0,103170.0,2.43462355]
[1747501712951,0.17942756,103180.0,103170.0,2.43458355]
[1747501713452,0.17942756,103180.0,103170.0,2.4349633]
[1747501716343,0.17942756,103180.0,103170.0,2.33691141]
[1747501716744,0.17942756,103180.0,103170.0,2.4349633]
[1747501716953,0.17942756,103180.0,103170.0,2.4349233]
[1747501717748,6e-08,103180.0,103170.0,3.73213519]
[1747501718052,0.1345,103200.0,103190.0,0.1937349]
[1747501718253,0.1345,103200.0,103190.0,1.81814175]
[1747501718452,0.1647,103200.0,103190.0,1.88344175]
[1747501718653,0.1647,103200.0,103190.0,1.8838215]
[1747501719144,0.3467,103200.0,103190.0,1.8838215]
[1747501720055,0.3457,103200.0,103190.0,1.8848215]
[1747501721154,0.3447,103200.0,103190.0,2.13938711]
[1747501721460,0.3647,103200.0,103190.0,2.13938711]
[1747501723063,0.3447,103200.0,103190.0,2.13938711]
[1747501723656,0.3647,103200.0,103190.0,2.13938711]
[1747501724455,0.3647,103200.0,103190.0,2.04835221]
[1747501726052,0.5584163,103200.0,103190.0,1.49364032]
[1747501726364,0.5584163,103200.0,103190.0,1.65497221]
[1747501726365,0.3647,103200.0,103190.0,1.65497221]
[1747501726559,0.5584163,103200.0,103190.0,1.70418623]
[1747501727060,0.5584163,103200.0,103190.0,1.60613434]
[1747501727260,0.5584163,103200.0,103190.0,1.70418623]
[1747501727669,0.65646819,103200.0,103190.0,0.97296408]
[1747501727965,0.65646819,103200.0,103190.0,0.76092408]
[1747501728159,0.65646819,103200.0,103190.0,0.97296408]
[1747501728358,0.65646819,103200.0,103190.0,1.33376408]
[1747501729559,0.65646819,103200.0,103190.0,0.97296408]
[1747501729765,0.65646819,103200.0,103190.0,1.18500408]
[1747501730163,0.66191035,103200.0,103190.0,1.18500408]
[1747501730364,1.12076224,103200.0,103190.0,0.76092408]
[1747501730667,1.02271035,103200.0,103190.0,0.71567638]
[1747501731554,1.12076224,103200.0,103190.0,0.70339636]
[1747501731759,1.12076224,103200.0,103190.0,0.67059636]
[1747501731760,1.46766624,103200.0,103190.0,0.67059636]
[1747501732053,1.46766624,103200.0,103190.0,0.49059636]
[1747501732669,1.46766624,103200.0,103190.0,0.46594361]
[1747501733568,1.46766624,103200.0,103190.0,0.46670311]
[1747501734079,1.36961435,103200.0,103190.0,0.46670311]
[1747501735272,1.11961435,103200.0,103190.0,0.46670311]
[1747501735881,1.21766624,103200.0,103190.0,0.46670311]
[1747501736071,1.11961435,103200.0,103190.0,0.46670311]
[1747501736983,0.92465846,103200.0,103190.0,0.46670311]
[1747501737481,0.56385846,103200.0,103190.0,0.42976911]
[1747501738079,0.66191035,103200.0,103190.0,0.42976911]
[1747501743581,1.12076224,103200.0,103190.0,0.23603421]
[1747501743884,1.58974624,103200.0,103190.0,0.20373421]
[1747501744072,1.90571813,103200.0,103190.0,0.00037975]
[1747501744279,0.1937351,103190.0,103180.0,0.036934]
[1747501744486,0.88233888,103190.0,103180.0,0.036934]
[1747501744789,1.44133088,103190.0,103180.0,0.036934]
[1747501744985,1.63133088,103190.0,103180.0,0.036934]
[1747501745173,1.81133088,103190.0,103180.0,0.036934]
[1747501745377,1.59133088,103190.0,103180.0,0.039934]
[1747501746088,1.47327899,103190.0,103180.0,0.039934]
[1747501746288,1.22327899,103190.0,103180.0,0.072634]
[1747501746488,1.22327899,103190.0,103180.0,0.07301375]
[1747501746688,1.22327899,103190.0,103180.0,0.07501375]
[1747501746890,1.32133088,103190.0,103180.0,0.07501375]
[1747501747284,1.2744023,103190.0,103180.0,0.07501375]
[1747501747483,1.1774903,103190.0,103180.0,0.07501375]
[1747501747690,1.2744023,103190.0,103180.0,0.03807975]
[1747501749995,1.2744023,103190.0,103180.0,0.23183365]
[1747501750291,1.2744023,103190.0,103180.0,0.03807975]
[1747501750594,1.0623223,103190.0,103180.0,0.23183365]
[1747501750789,0.9654103,103190.0,103180.0,0.23183365]
[1747501750993,0.8162351,103190.0,103180.0,0.26453365]
[1747501751191,0.4554351,103190.0,103180.0,0.60453365]
[1747501751494,0.4354351,103190.0,103180.0,0.60453365]
[1747501751900,0.5846103,103190.0,103180.0,0.60453365]
[1747501752383,0.4354351,103190.0,103180.0,0.60453365]
[1747501753586,0.5846103,103190.0,103180.0,0.60453365]
[1747501754994,0.5846103,103190.0,103180.0,0.63733365]
[1747501755389,0.4354351,103190.0,103180.0,0.63733365]
[1747501755600,0.4038351,103190.0,103180.0,0.63733365]
[1747501757396,0.3737351,103190.0,103180.0,0.63733365]
[1747501760495,0.37917726,103190.0,103180.0,0.63733365]
[1747501763392,0.41027726,103190.0,103180.0,0.63733365]
[1747501764297,0.44217726,103190.0,103180.0,0.63733365]
[1747501766086,0.59135246,103190.0,103180.0,0.63733365]
[1747501766996,0.59135246,103190.0,103180.0,0.63830405]
[1747501769397,0.54002314,103190.0,103180.0,0.63830405]
[1747501779607,0.24844216,103190.0,103180.0,0.63830405]
[1747501779903,0.41027716,103190.0,103180.0,0.63830405]
[1747501780312,0.41027716,103190.0,103180.0,0.99910405]
[1747501781807,0.41027716,103190.0,103180.0,0.63830405]
[1747501782008,0.41027716,103190.0,103180.0,0.99910405]
[1747501783702,0.21654216,103190.0,103180.0,0.99910405]
[1747501783902,0.21654216,103190.0,103180.0,1.05592405]
[1747501784306,0.21654216,103190.0,103180.0,1.09285805]
[1747501789615,0.18544216,103190.0,103180.0,1.09285805]
[1747501794314,0.18544216,103190.0,103180.0,1.30465805]
[1747501794504,0.21774216,103190.0,103180.0,1.30465805]
[1747501794701,0.21774216,103190.0,103180.0,1.40250393]
[1747501797618,0.21774216,103190.0,103180.0,1.34568393]
[1747501801220,0.25044216,103190.0,103180.0,1.34568393]
[1747501801518,0.25044216,103190.0,103180.0,1.30874993]
[1747501802518,0.21774216,103190.0,103180.0,1.30874993]
[1747501802816,0.21774216,103190.0,103180.0,1.36553504]
[1747501803819,0.21774216,103190.0,103180.0,1.05588916]
[1747501804018,0.21774216,103190.0,103180.0,1.36549504]
[1747501807927,0.21774216,103190.0,103180.0,1.40242904]
[1747501808724,0.21774216,103190.0,103180.0,1.44767674]
[1747501809529,0.24904216,103190.0,103180.0,1.44767674]
[1747501812428,0.24904216,103190.0,103180.0,1.45995676]
[1747501813130,0.24904216,103190.0,103180.0,1.67163676]
[1747501813626,0.24904216,103190.0,103180.0,2.03243676]
[1747501819828,0.24904216,103190.0,103180.0,1.98718906]
[1747501822931,0.24904216,103190.0,103180.0,1.26558906]
[1747501823132,0.24904216,103190.0,103180.0,1.62638906]
[1747501825434,0.24904216,103190.0,103180.0,1.67163676]
[1747501835754,0.44277726,103190.0,103180.0,1.57379088]
[1747501835953,0.24904216,103190.0,103180.0,1.67163676]
[1747501836153,0.24904216,103190.0,103180.0,1.79163676]
[1747501836954,0.44277746,103190.0,103180.0,1.79163676]
[1747501837156,0.24904216,103190.0,103180.0,1.79163676]
[1747501841158,0.24904216,103190.0,103180.0,1.77943507]
[1747501846169,0.24904216,103190.0,103180.0,1.79163676]
[1747501846969,0.44277736,103190.0,103180.0,1.69379088]
[1747501847159,0.24904216,103190.0,103180.0,1.74638906]
[1747501847359,0.44277736,103190.0,103180.0,1.32294906]
[1747501848070,0.54062324,103190.0,103180.0,1.25426318]
[1747501848366,0.56062324,103190.0,103180.0,0.83150318]
[1747501849366,0.56062324,103190.0,103180.0,1.04286318]
[1747501851272,0.56062324,103190.0,103180.0,0.99364916]
[1747501852565,0.56062324,103190.0,103180.0,1.20504916]
[1747501852969,0.46277736,103190.0,103180.0,1.20504916]
[1747501853171,0.56062324,103190.0,103180.0,1.20504916]
[1747501853564,0.56062324,103190.0,103180.0,1.56584916]
[1747501854269,0.46277736,103190.0,103180.0,1.56584916]
[1747501854573,0.44277736,103190.0,103180.0,1.66369504]
[1747501854756,0.44277736,103190.0,103180.0,1.69379504]
[1747501855372,0.44277736,103190.0,103180.0,1.73081266]
[1747501856271,0.44277736,103190.0,103180.0,1.63296678]
[1747501856571,0.44277736,103190.0,103180.0,1.73081266]
[1747501858369,0.44277736,103190.0,103180.0,1.63296678]
[1747501858571,0.44277736,103190.0,103180.0,1.64516318]
[1747501859074,0.44277736,103190.0,103180.0,1.40370318]
[1747501859272,0.44277736,103190.0,103180.0,1.61498318]
[1747501859469,0.56062324,103190.0,103180.0,1.19230318]
[1747501860373,0.44277736,103190.0,103180.0,1.19230318]
[1747501860672,0.24904216,103190.0,103180.0,1.71282906]
[1747501860862,0.44277736,103190.0,103180.0,1.71282906]
[1747501861058,0.44277736,103190.0,103180.0,1.74332906]
[1747501868794,0.24904216,103190.0,103180.0,1.74332906]
[1747501868987,0.44277746,103190.0,103180.0,1.74332906]
[1747501869182,0.24904216,103190.0,103180.0,1.74332906]
[1747501869384,0.44277746,103190.0,103180.0,1.74332906]
[1747501873887,0.44277746,103190.0,103180.0,1.38252906]
[1747501874086,0.44277746,103190.0,103180.0,1.74332906]
[1747501875184,0.44277746,103190.0,103180.0,1.38252906]
[1747501875385,0.44277746,103190.0,103180.0,1.74332906]
[1747501879295,0.44277746,103190.0,103180.0,1.53204906]
[1747501879498,0.44277746,103190.0,103180.0,1.74312906]
[1747501879790,0.44277746,103190.0,103180.0,1.64528318]
[1747501880500,0.44277746,103190.0,103180.0,1.64500318]
[1747501881500,0.44277746,103190.0,103180.0,1.22280318]
[1747501881885,0.44277746,103190.0,103180.0,1.17358916]
[1747501882197,0.44277746,103190.0,103180.0,1.21883686]
[1747501885197,0.44277746,103190.0,103180.0,1.17358916]
[1747501885796,0.44277746,103190.0,103180.0,1.21061577]
[1747501886295,0.44277746,103190.0,103180.0,1.42173577]
[1747501886495,0.44277746,103190.0,103180.0,1.51958165]
[1747501892005,0.44277746,103190.0,103180.0,1.56879567]
[1747501898798,0.44277746,103190.0,103180.0,1.47094979]
[1747501899600,0.44277746,103190.0,103180.0,1.43392318]
[1747501907900,0.44277746,103190.0,103180.0,1.53176906]
[1747501908709,0.24904216,103190.0,103180.0,1.53176906]
[1747501908913,0.44277756,103190.0,103180.0,1.53176906]
[1747501911615,0.44277756,103190.0,103180.0,1.43392318]
[1747501911812,0.44277756,103190.0,103180.0,1.53176906]
[1747501916414,0.24904216,103190.0,103180.0,1.53176906]
[1747501916615,0.44277746,103190.0,103180.0,1.57701676]
[1747501919710,0.24904216,103190.0,103180.0,1.57701676]
[1747501919910,0.24904216,103190.0,103180.0,1.53176906]
[1747501920613,0.18544216,103190.0,103180.0,1.62961494]
[1747501922924,0.18544216,103190.0,103180.0,1.67486264]
[1747501924624,0.18544216,103190.0,103180.0,2.02526264]
[1747501928725,0.18544216,103190.0,103180.0,1.67486264]
[1747501929028,0.18544216,103190.0,103180.0,1.7351929]
[1747501929229,0.00544216,103190.0,103180.0,1.7351929]
[1747501931220,0.18544216,103190.0,103180.0,1.7351929]
[1747501932530,0.18544216,103190.0,103180.0,1.9457529]
[1747501933628,0.18544216,103190.0,103180.0,2.2961529]
[1747501933931,0.18544216,103190.0,103180.0,1.8744729]
[1747501934132,0.18544216,103190.0,103180.0,2.23546264]
[1747501935822,0.18544216,103190.0,103180.0,2.03977088]
[1747501936028,0.18544216,103190.0,103180.0,2.23546264]
[1747501936936,0.18544216,103190.0,103180.0,2.19021494]
[1747501938637,0.18544216,103190.0,103180.0,2.55101494]
[1747501940235,0.18544216,103190.0,103180.0,2.59626264]
[1747501940437,0.18544216,103190.0,103180.0,2.19005088]
[1747501940736,0.18544216,103190.0,103180.0,2.59622264]
[1747501941329,0.18544216,103190.0,103180.0,2.58395121]
[1747501943438,0.18544216,103190.0,103180.0,2.38825945]
[1747501943742,0.18544216,103190.0,103180.0,2.58395121]
[1747501948653,0.18544216,103190.0,103180.0,2.64428147]
[1747501949552,0.21624216,103190.0,103180.0,2.64428147]
[1747501950049,0.21624216,103190.0,103180.0,2.60733888]
[1747501954364,0.21624216,103190.0,103180.0,2.01724787]
[1747501954559,0.21624216,103190.0,103180.0,2.73884787]
[1747501955359,0.21624216,103190.0,103180.0,2.52836787]
[1747501955559,0.24824216,103190.0,103180.0,2.73872787]
[1747501955864,0.24824216,103190.0,103180.0,2.64088199]
[1747501957365,0.24824216,103190.0,103180.0,1.91928199]
[1747501957564,0.24824216,103190.0,103180.0,2.64088199]
[1747501958861,0.24824216,103190.0,103180.0,2.73872787]
[1747501964268,0.24824216,103190.0,103180.0,2.01712787]
[1747501964661,0.24824216,103190.0,103180.0,2.73872787]
[1747501970574,0.24824216,103190.0,103180.0,2.31756787]
[1747501970766,0.24824216,103190.0,103180.0,2.73804787]
[1747501974577,0.21624216,103190.0,103180.0,2.73804787]
[1747501974972,0.21624216,103190.0,103180.0,2.31756787]
[1747501975173,0.21624216,103190.0,103180.0,2.73800787]
[1747501975876,0.10392286,103190.0,103180.0,2.73800787]
[1747501976775,2e-08,103190.0,103180.0,2.65578561]
[1747501977176,0.10054882,103190.0,103180.0,2.65578561]
[1747501977374,0.01996772,103190.0,103180.0,2.65578561]
[1747501977569,8e-08,103190.0,103180.0,2.65578561]
[1747501977978,0.155,103200.0,103190.0,0.1937356]
[1747501977979,0.08075098,103200.0,103190.0,0.1937356]
[1747501978174,0.001,103220.0,103200.0,0.048425]
[1747501978375,0.021,103220.0,103210.0,1.13694388]
[1747501978574,0.021,103220.0,103210.0,1.49694388]
[1747501979379,0.201,103220.0,103210.0,1.49694388]
[1747501980279,0.203,103220.0,103210.0,1.61694388]
[1747501981582,0.2373,103220.0,103210.0,1.19654388]
[1747501981784,0.2373,103220.0,103210.0,1.61690388]
[1747501981983,0.2684,103220.0,103210.0,1.61690388]
[1747501982981,0.2684,103220.0,103210.0,1.97770388]
[1747501983185,0.2684,103220.0,103210.0,2.00960388]
[1747501983569,0.2484,103220.0,103210.0,2.00960388]
[1747501983775,0.2161,103220.0,103210.0,2.00960388]
[1747501984084,0.067284,103220.0,103210.0,2.00960388]
[1747501984782,0.067284,103220.0,103210.0,2.06511642]
[1747501984783,0.07272616,103220.0,103210.0,2.06511642]
[1747501985880,0.10302616,103220.0,103210.0,2.00960388]
[1747501987486,0.10302616,103220.0,103210.0,1.911758]
[1747501987787,0.10302616,103220.0,103210.0,2.00960388]
[1747501987988,0.10302616,103220.0,103210.0,1.58924388]
[1747501988178,0.10302616,103220.0,103210.0,2.00948388]
[1747501988378,0.10302616,103220.0,103210.0,1.911638]
[1747501988577,0.10302616,103220.0,103210.0,2.00948388]
[1747501990091,0.10302616,103220.0,103210.0,1.28788388]
[1747501990280,0.10302616,103220.0,103210.0,2.00948388]
[1747501990682,0.10302616,103220.0,103210.0,2.35988388]
[1747501992492,0.10302616,103220.0,103210.0,2.262038]
[1747501992692,0.10302616,103220.0,103210.0,2.35988388]
[1747501993093,0.10302616,103220.0,103210.0,1.63828388]
[1747501993390,0.10302616,103220.0,103210.0,2.35988388]
[1747501995295,0.10302616,103220.0,103210.0,2.36085428]
[1747501995498,0.10302616,103220.0,103210.0,2.2630084]
[1747501995796,0.10302616,103220.0,103210.0,2.36085428]
[1747501996597,0.10302616,103220.0,103210.0,2.2630084]
[1747501996898,0.10302616,103220.0,103210.0,2.36085428]
[1747501997497,0.10302616,103220.0,103210.0,2.31742626]
[1747501997696,0.10302616,103220.0,103210.0,2.41527214]
[1747501998299,0.10302616,103220.0,103210.0,1.99503214]
[1747501998492,0.10302616,103220.0,103210.0,2.41491214]
[1747501999106,0.13452616,103220.0,103210.0,2.41491214]
[1747502000117,0.10302616,103220.0,103210.0,2.41491214]
[1747502001015,0.10302616,103220.0,103210.0,2.4518276]
[1747502002217,0.10302616,103220.0,103210.0,1.7302276]
[1747502002418,0.10302616,103220.0,103210.0,2.4518276]
[1747502002616,0.10302616,103220.0,103210.0,1.93410172]
[1747502002818,0.10302616,103220.0,103210.0,2.0000476]
[1747502003013,0.25237204,103220.0,103210.0,2.11212172]
[1747502003315,0.44605124,103220.0,103210.0,1.14730172]
[1747502003519,0.80685124,103220.0,103210.0,1.14730172]
[1747502003715,1.26135105,103220.0,103210.0,1.11640172]
[1747502003914,1.15373524,103220.0,103210.0,1.11640172]
[1747502004115,1.15373524,103220.0,103210.0,1.14780172]
[1747502004317,0.90373524,103220.0,103210.0,1.14780172]
[1747502004517,1.15373524,103220.0,103210.0,1.09338386]
[1747502006212,0.90373524,103220.0,103210.0,1.09338386]
[1747502008624,0.90373524,103220.0,103210.0,0.74298386]
[1747502010025,0.54293524,103220.0,103210.0,0.74298386]
[1747502010219,0.90373524,103220.0,103210.0,0.74298386]
[1747502010523,0.90373524,103220.0,103210.0,0.74336361]
[1747502011828,0.90373524,103220.0,103210.0,0.70644815]
[1747502013528,0.80685124,103220.0,103210.0,0.70644815]
[1747502013828,0.44605124,103220.0,103210.0,0.70644815]
[1747502014029,0.34820536,103220.0,103210.0,0.70644815]
[1747502014329,0.34820536,103220.0,103210.0,0.80429403]
[1747502014825,1.27158112,103220.0,103210.0,0.15135015]
[1747502015029,1.67154112,103220.0,103210.0,0.15135015]
[1747502015326,1.88142112,103220.0,103210.0,0.15135015]
[1747502018830,1.67154112,103220.0,103210.0,0.15135015]
[1747502019027,1.88138112,103220.0,103210.0,0.15135015]
[1747502019630,1.88138112,103220.0,103210.0,0.18225015]
[1747502020436,1.53353524,103220.0,103210.0,0.37594815]
[1747502020621,1.53353524,103220.0,103210.0,0.18225015]
[1747502020919,1.53353524,103220.0,103210.0,0.37594815]
[1747502021130,1.53353524,103220.0,103210.0,0.18225015]
[1747502021336,1.63138112,103220.0,103210.0,0.18225015]
[1747502021633,1.63138112,103220.0,103210.0,0.37594825]
[1747502024734,1.63138112,103220.0,103210.0,0.22594825]
[1747502026440,1.43568936,103220.0,103210.0,0.22594825]
[1747502026733,1.63138112,103220.0,103210.0,0.25614825]
[1747502030838,1.53353524,103220.0,103210.0,0.25614825]
[1747502031839,1.63138112,103220.0,103210.0,0.25614825]
[1747502032537,1.53449712,103220.0,103210.0,0.25614825]
[1747502036441,1.17369712,103220.0,103210.0,0.25614825]
[1747502036641,1.53449712,103220.0,103210.0,0.25614825]
[1747502041248,1.32465712,103220.0,103210.0,0.25614825]
[1747502041449,1.53437712,103220.0,103210.0,0.09535015]
[1747502041648,1.53437712,103220.0,103210.0,0.28904945]
[1747502042352,1.53437712,103220.0,103210.0,0.09535015]
[1747502043250,1.53437712,103220.0,103210.0,0.28904935]
[1747502043445,1.32465712,103220.0,103210.0,0.28904935]
[1747502045149,1.32465712,103220.0,103210.0,0.09535015]
[1747502045852,1.32465712,103220.0,103210.0,0.28904935]
[1747502047852,0.96385712,103220.0,103210.0,0.28904935]
[1747502048152,1.32465712,103220.0,103210.0,0.28904935]
[1747502051255,0.96385712,103220.0,103210.0,0.28904935]
[1747502051447,1.32465712,103220.0,103210.0,0.28904935]
[1747502051648,1.12896536,103220.0,103210.0,0.28904935]
[1747502051850,1.32465712,103220.0,103210.0,0.28904935]
[1747502053354,0.86601124,103220.0,103210.0,0.28904935]
[1747502053555,1.22681124,103220.0,103210.0,0.28904935]
[1747502053855,1.20625124,103220.0,103210.0,0.28904935]
[1747502054155,0.78685124,103220.0,103210.0,0.28904935]
[1747502054454,0.99665124,103220.0,103210.0,0.28904935]
[1747502054846,0.96515124,103220.0,103210.0,0.28904935]
[1747502055047,0.65750536,103220.0,103210.0,0.28904935]
[1747502055249,0.75535124,103220.0,103210.0,0.45904935]
[1747502056456,0.88529712,103220.0,103210.0,0.45904935]
[1747502056755,0.88529712,103220.0,103210.0,0.45905075]
[1747502056953,0.88529712,103220.0,103210.0,0.26535015]
[1747502057156,0.88529712,103220.0,103210.0,0.45905075]
[1747502057356,0.88529712,103220.0,103210.0,0.26535015]
[1747502057548,0.88529712,103220.0,103210.0,0.45905075]
[1747502058851,0.68960536,103220.0,103210.0,0.45905075]
[1747502059155,0.78745124,103220.0,103210.0,0.45905075]
[1747502060659,0.42665124,103220.0,103210.0,0.45905075]
[1747502060959,0.78745124,103220.0,103210.0,0.45905075]
[1747502062458,0.42665124,103220.0,103210.0,0.45905075]
[1747502062657,0.78745124,103220.0,103210.0,0.45905075]
[1747502063755,0.80745124,103220.0,103210.0,0.45905075]
[1747502064259,0.90529712,103220.0,103210.0,0.45905075]
[1747502066253,0.90529712,103220.0,103210.0,0.23245015]
[1747502066457,0.90529712,103220.0,103210.0,0.06245015]
[1747502069659,0.54449712,103220.0,103210.0,0.06245015]
[1747502069960,0.90529712,103220.0,103210.0,0.06245015]
[1747502072461,0.99529712,103220.0,103210.0,0.06245015]
[1747502073648,1.21529712,103220.0,103210.0,0.06245015]
[1747502073850,1.21529712,103220.0,103210.0,0.03225015]
[1747502075860,1.60654775,103220.0,103210.0,0.03225015]
[1747502083772,1.70439363,103220.0,103210.0,0.03225015]
[1747502083976,1.60654775,103220.0,103210.0,0.03225015]
[1747502085472,1.70439363,103220.0,103210.0,0.03225015]
[1747502085667,1.60654775,103220.0,103210.0,0.03225015]
[1747502089679,1.60654775,103220.0,103210.0,0.06495015]
[1747502090292,2.02518775,103220.0,103210.0,0.06495015]
[1747502092490,2.38598775,103220.0,103210.0,0.06495015]
[1747502095988,2.17666775,103220.0,103210.0,0.06495015]
[1747502096188,2.38594775,103220.0,103210.0,0.06495015]
[1747502098687,2.38594775,103220.0,103210.0,0.06476093]
[1747502101898,2.17666775,103220.0,103210.0,0.06476093]
[1747502102093,2.38590775,103220.0,103210.0,0.06476093]
[1747502106486,2.19021599,103220.0,103210.0,0.06476093]
[1747502106685,2.38590775,103220.0,103210.0,0.06476093]
[1747502107400,1.98097599,103220.0,103210.0,0.06476093]
[1747502107602,2.38586775,103220.0,103210.0,0.06476093]
[1747502109403,2.19017599,103220.0,103210.0,0.06476093]
[1747502109597,2.38586775,103220.0,103210.0,0.06476093]
[1747502112801,1.98097599,103220.0,103210.0,0.06476093]
[1747502112997,2.38582775,103220.0,103210.0,0.06476093]
[1747502124601,1.66422775,103220.0,103210.0,0.06476093]
[1747502124904,2.38582775,103220.0,103210.0,0.06476093]
[1747502131309,2.17666775,103220.0,103210.0,0.06476093]
[1747502131510,2.38566775,103220.0,103210.0,0.06476093]
[1747502135417,1.66406775,103220.0,103210.0,0.06476093]
[1747502135618,2.38566775,103220.0,103210.0,0.06476093]
[1747502137505,1.66406775,103220.0,103210.0,0.06476093]
[1747502137817,2.38566775,103220.0,103210.0,0.06476093]
[1747502149425,1.66406775,103220.0,103210.0,0.06476093]
[1747502149624,2.38566775,103220.0,103210.0,0.06476093]
[1747502150225,2.40837775,103220.0,103210.0,0.06476093]
[1747502155331,2.42290775,103220.0,103210.0,0.06476093]
[1747502158330,2.52075363,103220.0,103210.0,0.06476093]
[1747502158931,2.42290775,103220.0,103210.0,0.06476093]
[1747502159328,2.52075363,103220.0,103210.0,0.0336704]
[1747502159523,0.1937025,103210.0,103200.0,0.0327]
[1747502159727,1.06594838,103210.0,103200.0,0.0327]
[1747502160232,1.24594838,103210.0,103200.0,0.0327]
[1747502160823,1.24694838,103210.0,103200.0,0.0327]
[1747502161331,0.1937212,103200.0,103190.0,0.03423808]
[1747502161531,0.92446708,103200.0,103190.0,0.03423808]
[1747502162233,1.14446708,103200.0,103190.0,0.03423808]
[1747502162435,1.17646708,103200.0,103190.0,0.03423808]
[1747502162626,1.17646708,103200.0,103190.0,0.09823808]
[1747502163036,1.17646708,103200.0,103190.0,0.09923808]
[1747502163535,1.17646708,103200.0,103190.0,0.10023808]
[1747502164132,1.38518708,103200.0,103190.0,0.10023808]
[1747502165144,1.38518708,103200.0,103190.0,0.19023808]
[1747502165733,1.38518708,103200.0,103190.0,0.10023808]
[1747502166240,1.39062924,103200.0,103190.0,0.10023808]
[1747502166439,1.75142924,103200.0,103190.0,0.10023808]
[1747502167737,1.77412924,103200.0,103190.0,0.10023808]
[1747502167940,2.05412924,103200.0,103190.0,0.10023808]
[1747502168236,1.83197512,103200.0,103190.0,0.06793808]
[1747502168435,1.83197512,103200.0,103190.0,0.03613808]
[1747502168436,2.239821,103200.0,103190.0,0.03613808]
[1747502168632,0.1937588,103180.0,103170.0,0.0651]
[1747502168833,0.7045588,103180.0,103170.0,0.0651]
[1747502169034,1.04240468,103180.0,103170.0,0.1751]
[1747502169234,1.07240468,103180.0,103170.0,0.1751]
[1747502169835,1.07240468,103180.0,103170.0,0.1791]
[1747502170035,1.07240468,103180.0,103170.0,0.1821]
[1747502171853,1.07240468,103180.0,103170.0,0.2126]
[1747502172145,1.10480468,103180.0,103170.0,0.2126]
[1747502172654,1.10480468,103180.0,103170.0,0.1026]
[1747502173041,1.13650468,103180.0,103170.0,0.1026]
[1747502173252,1.0486588,103180.0,103170.0,0.1026]
[1747502173442,1.14650468,103180.0,103170.0,0.1526]
[1747502173642,1.15621767,103180.0,103170.0,0.1526]
[1747502175048,1.15621767,103180.0,103170.0,0.1026]
[1747502175245,1.46270355,103180.0,103170.0,0.1026]
[1747502175449,1.36485767,103180.0,103170.0,0.1026]